Cogmind - Beta 10.2 @@@ ROGUE MODE // 2021.01.05 @ 22:02:11 Player: Luigi Panache Result: Destroyed by G-47 Trooper with Particle Gun Performance ------------- Evolutions (3) 1500 Regions Visited (7) 1400 Robots Destroyed (81) 405 Value Destroyed (2762) 2762 Prototype IDs (1) 20 Alien Tech Used (0) 0 Bonus (1109) 1109 TOTAL SCORE: 7196 Bonus ------- High Alert Combat Kills 219 Follower Combat Kills 190 Entered Garrisons 200 Used RIF Installer 500 Cogmind --------- Core Integrity 0/700 Matter 183/300 Energy 160/160 System Corruption 9% Temperature Cool (9) Movement Treading (195) Ox2 Location -7/Factory Parts ------- > --- POWER (1) -------- Light Nuclear Core > --- PROPULSION (3) --- Light Treads Light Treads Advanced Treads > --- UTILITY (7) ------ High-capacity Storage Unit High-capacity Storage Unit High-capacity Storage Unit High-capacity Storage Unit Targeting Computer Relay Coupler [NC] (22) Relay Coupler [Sentry] (7) > --- WEAPON (2) ------- Heavy Assault Rifle Flak Gun > --- INVENTORY (36) --- Light Nuclear Core Light Treads Light Treads Armored Wheel Armored Wheel Armored Huge Wheel High-capacity Storage Unit High-capacity Storage Unit High-capacity Matter Pod (200) Advanced Signal Interpreter Advanced Terrain Scan Processor Utility Shielding Improved Weapon Shielding Relay Coupler [NC] (31) Relay Coupler [Specialist] (20) Shock Rifle Lightning Gun Heavy Laser Assault Rifle Heavy Assault Rifle Grenade Launcher Grenade Launcher Grenade Launcher Grenade Launcher Grenade Launcher Rocket Launcher Improved Grenade Launcher Datajack Axe Peak State ------------ > --- POWER ------------ Improved Deuterium Engine > --- PROPULSION ------- Armored Treads Armored Huge Wheel > --- UTILITY ---------- High-capacity Storage Unit High-capacity Storage Unit High-capacity Storage Unit High-capacity Storage Unit Hardened Light Armor Plating Relay Coupler [NC] Relay Coupler [Sentry] > --- WEAPON ----------- Gauss Rifle Flak Gun > --- INVENTORY -------- Light Treads Light Treads Light Treads Armored Wheel Armored Huge Wheel Armored Huge Wheel High-capacity Storage Unit High-capacity Storage Unit High-capacity Matter Pod Advanced Signal Interpreter Advanced Terrain Scan Processor Utility Shielding Improved Weapon Shielding Relay Coupler [NC] Relay Coupler [NC] Relay Coupler [Specialist] Shock Rifle Plasma Cannon Assault Rifle Light Assault Rifle Heavy Assault Rifle Heavy Assault Rifle Flak Gun Grenade Launcher Grenade Launcher Grenade Launcher Grenade Launcher Grenade Launcher Rocket Launcher Improved Grenade Launcher Datajack Axe [Rating: 41] Favorites ----------- Power Ion Engine Engine Ion Engine Power Core Light Nuclear Core Propulsion Light Treads Treads Light Treads Leg Aluminum Leg Wheel Armored Huge Wheel Utility High-capacity Storage Unit Device Improved Sensor Array Storage High-capacity Storage Unit Processor Enhanced Optical Array Hackware Relay Coupler [NC] Protection Utility Shielding Weapon Light Assault Rifle Energy Gun Medium Laser Energy Cannon Plasma Cannon Ballistic Gun Light Assault Rifle Launcher Grenade Launcher Special Melee Weapon Datajack Build | -11 -10 -10 -10 -9 -8 -8 -7 ------- Run | Scr Mat Min Exi Min Mat Gar Fac Slots Evolved 6 | . . . . . 4 . 2 Power . | . . . . . . . . Propulsion 1 | . . . . . 1 . . Utility 5 | . . . . . 3 . 2 Weapon . | . . . . . . . . Parts Attached 97 | . 12 8 . . 24 10 43 Power 9 | . 1 1 . . 2 2 3 Engine 5 | . 1 1 . . 1 1 1 Core 4 | . . . . . 1 1 2 Reactor . | . . . . . . . . Propulsion 18 | . 2 2 . . 6 1 7 Treads 9 | . 2 . . . . 1 6 Leg 2 | . . 2 . . . . . Wheel 7 | . . . . . 6 . 1 Hover . | . . . . . . . . Flight . | . . . . . . . . Utility 21 | . 3 1 . . 5 2 10 Device 1 | . . . . . 1 . . Storage 7 | . 3 1 . . 1 1 1 Processor 3 | . . . . . 2 . 1 Hackware 5 | . . . . . . . 5 Protection 5 | . . . . . 1 1 3 Artifact . | . . . . . . . . Weapon 49 | . 6 4 . . 11 5 23 Energy Gun 6 | . 3 2 . . 1 . . Energy Cannon 4 | . . . . . 1 . 3 Ballistic Gun 28 | . 1 2 . . 7 4 14 Ballistic Cannon . | . . . . . . . . Launcher 5 | . 2 . . . 2 1 . Special Weapon . | . . . . . . . . Impact Weapon . | . . . . . . . . Slashing Weapon . | . . . . . . . . Piercing Weapon . | . . . . . . . . Special Melee Weapon 6 | . . . . . . . 6 Unidentified Prototypes 1 | . . . . . 1 . . Parts Lost 33 | . 2 5 . . 9 2 15 Power 8 | . 1 1 . . 3 . 3 Propulsion 7 | . . 2 . . 2 . 3 Utility 4 | . . . . . 1 . 3 Weapon 14 | . 1 2 . . 3 2 6 Highest Loss Streak 5 | . 2 4 . . 3 1 5 Average Slot Usage (%) 89 | . 95 93 100 100 85 79 86 Engine 6 | . 14 11 14 14 3 3 . Core 2 | . . . . . 4 2 4 Treads 8 | . 25 7 . . . 1 10 Leg 5 | . 2 17 28 28 . . . Wheel 5 | . . . . . 15 9 5 Storage 27 | . 23 28 28 28 26 29 30 Processor 2 | . . . . . 9 6 1 Hackware 3 | . . . . . . . 10 Protection 3 | . . . . . 4 9 6 Energy Gun 2 | . 14 4 . . . . . Energy Cannon 1 | . . . . . . 4 1 Ballistic Gun 13 | . 8 17 28 28 16 10 10 Launcher 1 | . 5 5 . . . 3 . Naked Turns . | . . . . . . . . Heaviest Build 151 | 12 59 71 71 71 110 143 151 Greatest Support 62 | 20 40 40 20 20 44 28 62 Greatest Overweight (x) 48 | . 1 3 3 3 35 5 48 Average Overweight (x) 2 | . . 2 3 3 2 3 4 Largest Inventory Capacity 36 | . 18 20 20 20 28 36 36 Average Capacity 26 | . 11 19 20 20 27 30 36 Most Carried 36 | . 17 18 20 20 28 33 36 Average Carried 24 | . 9 17 18 20 26 27 33 Final Capacity 36 | 6 18 20 20 20 28 36 36 Final Carried 33 | 6 17 18 20 20 24 33 30 Class Distribution -------------------- 56% | Hauler-Mutant 22% | Mutant 21% | Bothacker-Mutant Dominant Class ---------------- Mutant | -10/Materials Hauler-Mutant | -10/Mines Hauler-Mutant | -10/Exiles Hauler-Mutant | -9/Mines Hauler-Mutant | -8/Materials Hauler-Mutant | -8/Garrison Bothacker-Mutant | -7/Factory Resources | -11 -10 -10 -10 -9 -8 -8 -7 ----------- Run | Scr Mat Min Exi Min Mat Gar Fac Matter Collected 2377 | 181 221 135 . . 750 274 816 Remotely . | . . . . . . . . Salvage Created 3029 | . 230 276 . . 1396 281 846 Parts 169 | . 17 9 . . 83 27 33 Haulers Intercepted 3 | . 1 . . . 1 . 1 Recyclers Shooed 3 | . . 2 . . . . 1 Parts Field Recycled . | . . . . . . . . Retrieved Matter . | . . . . . . . . Parts Self-Destructed . | . . . . . . . . Prevented . | . . . . . . . . Kills | -11 -10 -10 -10 -9 -8 -8 -7 ------- Run | Scr Mat Min Exi Min Mat Gar Fac Combat Hostiles Destroyed 67 | . 8 4 . . 28 10 17 Guns 49 | . 8 2 . . 22 5 12 Cannons 7 | . . . . . 1 1 5 AOE 10 | . . 1 . . 5 4 . Classes Destroyed 11 | . 3 1 . . 5 1 1 Worker 4 | . . . . . 3 . 1 Builder 2 | . . . . . 2 . . Hauler 3 | . 1 . . . 1 . 1 Recycler 4 | . . 1 . . 3 . . Operator 1 | . . . . . 1 . . Swarmer 26 | . 6 . . . 11 5 4 Grunt 26 | . 2 4 . . 12 2 6 Brawler 1 | . . . . . 1 . . Sentry 9 | . . . . . 4 2 3 Hunter 2 | . . . . . . 1 1 Programmer 3 | . . . . . . . 3 Best Kill Streak 13 | . 3 2 . . 13 3 4 Combat Bots Only 11 | . 3 2 . . 11 3 4 Max Kills in Single Turn 4 | . 1 1 . . 4 2 1 Gunslinging . | . . . . . . . . Exploded 3 | . . 1 . . 3 2 . Melee . | . . . . . . . . Uniques/NPCs Destroyed . | . . . . . . . . Combat | -11 -10 -10 -10 -9 -8 -8 -7 -------- Run | Scr Mat Min Exi Min Mat Gar Fac Damage Taken 6500 | . 576 399 . . 1464 383 3678 Core 1077 | . 116 66 . . 149 41 705 Absorbed by Shields . | . . . . . . . . Core Remaining (%) 64 | 100 . . . 27 . 65 . Volleys Fired 225 | . 31 23 . . 66 23 82 Largest 2 | . 2 2 . . 2 2 2 Hottest 108 | . 100 80 . . 108 108 103 Shots Fired 396 | . 62 35 . . 124 34 141 Gun 368 | . 62 33 . . 116 26 131 Cannon 20 | . . . . . 5 5 10 Launcher 8 | . . 2 . . 3 3 . Special . | . . . . . . . . Kinetic 304 | . 18 14 . . 115 26 131 Thermal 57 | . 36 . . . 6 5 10 Explosive 8 | . . 2 . . 3 3 . Electromagnetic 27 | . 8 19 . . . . . Robot Hit Streak 29 | . 12 9 . . 14 5 29 Robot Miss Streak 8 | . 4 3 . . 8 3 8 Penetration Max 1 | . . . . . . . 1 Secondary Targets 12 | . 3 . . . 5 . 4 Max Gunslinging Chain 1 | . 1 . . . 1 . 1 Shots Hit Robots 317 | . 36 20 . . 105 23 133 Core Hits 218 | . 13 11 . . 114 19 61 Critical Hits 3 | . . . . . . 2 1 Critical Kills . | . . . . . . . . Critical Parts Destroyed 3 | . . . . . . 2 1 Melee Attacks 17 | . . . . . . . 17 Impact . | . . . . . . . . Slashing . | . . . . . . . . Piercing . | . . . . . . . . Sneak Attacks 6 | . . . . . . . 6 Combat Hostiles . | . . . . . . . . Follow-up Attacks . | . . . . . . . . Damage Inflicted 5935 | . 391 443 . . 2152 739 2210 Guns 4671 | . 391 275 . . 1680 392 1933 Cannons 299 | . . . . . 50 25 224 Explosions 907 | . . 163 . . 422 322 . Melee . | . . . . . . . . Ramming 58 | . . 5 . . . . 53 Kinetic 4145 | . 86 70 . . 1664 392 1933 Thermal 629 | . 250 64 . . 66 25 224 Explosive 843 | . . 99 . . 422 322 . Electromagnetic 260 | . 55 205 . . . . . Impact . | . . . . . . . . Slashing . | . . . . . . . . Piercing . | . . . . . . . . Highest Corruption 9 | . 1 1 1 1 1 1 9 Average Corruption 2 | . 1 1 1 1 1 1 7 Corruption Purged . | . . . . . . . . Effects 32 | . . 3 . 1 1 1 26 Message Errors 14 | . . 2 . . . 1 11 Matter Fused 3 | . . . . . . . 3 Heat Flow Errors 3 | . . . . . . . 3 Energy Discharges 2 | . . . . 1 . . 1 Data Loss (minor) 1 | . . . . . . . 1 Data Loss (major) 3 | . . . . . . . 3 Targeting Errors 5 | . . . . . 1 . 4 Weapon Failures 1 | . . 1 . . . . . Overload Shots . | . . . . . . . . Overflow Damage 71 | . . 21 . . 19 26 5 Projectiles 5 | . . . . . . . 5 Explosions 66 | . . 21 . . 19 26 . Melee . | . . . . . . . . Knockbacks 1 | . . . . . . . 1 Impact 1 | . . . . . . . 1 Kinetic . | . . . . . . . . Secondary . | . . . . . . . . Self-Inflicted Damage 192 | . . 81 . . 59 38 14 Shots 6 | . . 3 . . 2 1 . Rammed 2 | . . 1 . . . . 1 Targets Rammed 4 | . . 1 . . . . 3 Kicked . | . . . . . . . . Crushed 2 | . . . . . . . 2 Highest Temperature 273 | . 273 117 . . 108 30 231 Average Temperature 53 | . 83 44 . . 21 11 45 Received Heat Transfer 1632 | . 96 174 . . 594 135 633 Siege Activations . | . . . . . . . . Robots Corrupted 1 | . . 1 . . . . . Combat Hostiles 1 | . . 1 . . . . . Parts Fried 1 | . 1 . . . . . . Impact Corruptions . | . . . . . . . . Robots Melted . | . . . . . . . . Combat Hostiles . | . . . . . . . . Parts Melted 1 | . 1 . . . . . . Heat Transferred 1377 | . 740 50 . . 137 50 400 Parts Sabotaged . | . . . . . . . . Parts Stolen . | . . . . . . . . Parts Stripped . | . . . . . . . . Power Chain Reactions 1 | . . 1 . . . . . Missiles Intercepted . | . . . . . . . . Alert | -11 -10 -10 -10 -9 -8 -8 -7 ------- Run | Scr Mat Min Exi Min Mat Gar Fac Peak Influence 764 | . 161 98 . . 614 764 481 Initial 401 | . . 43 . . . 401 401 Average 253 | . 71 52 . . 229 595 333 Maximum Alert Level 3 | . . . . . 2 3 2 Low Security (%) 44 | . 100 100 . 100 52 . 4 Level 1 30 | . . . . . 23 . 69 Level 2 22 | . . . . . 24 72 25 Level 3 3 | . . . . . . 27 . Level 4 . | . . . . . . . . Level 5 . | . . . . . . . . High Security . | . . . . . . . . Max Security . | . . . . . . . . Squads Dispatched 12 | . . . . . 5 . 7 Investigation 3 | . . . . . 1 . 2 Extermination 2 | . . . . . . . 2 Reinforcement 5 | . . . . . 2 . 3 Assault . | . . . . . . . . Garrison 2 | . . . . . 2 . . Intercept . | . . . . . . . . Construction Impeded 2 | . . . . . 1 . 1 Haulers Reinforced 1 | . . . . . . . 1 Stealth | -11 -10 -10 -10 -9 -8 -8 -7 --------- Run | Scr Mat Min Exi Min Mat Gar Fac Distress Signals 5 | . . . . . 4 . 1 Communications Jammed . | . . . . . . . . Distress Signals . | . . . . . . . . Times Spotted 108 | . 13 4 . . 42 9 40 Peak Tracking Total 8 | . 4 2 . . 8 3 5 Tactical Retreats 2 | . . . . . 1 . 1 Traps | -11 -10 -10 -10 -9 -8 -8 -7 ------- Run | Scr Mat Min Exi Min Mat Gar Fac Traps Triggered 7 | . 5 . . . . 2 . Indirectly . | . . . . . . . . Trap Hack Attempts . | . . . . . . . . Triggered . | . . . . . . . . Disarmed . | . . . . . . . . Reprogrammed . | . . . . . . . . Reused . | . . . . . . . . Traps Extracted . | . . . . . . . . Installed . | . . . . . . . . Triggered . | . . . . . . . . Machines | -11 -10 -10 -10 -9 -8 -8 -7 ---------- Run | Scr Mat Min Exi Min Mat Gar Fac Machines Disabled 5 | . 1 . . . . 4 . Max in Single Turn 1 | . 1 . . . . 1 . Garrison Relay 2 | . . . . . . 2 . Machines Sabotaged . | . . . . . . . . Garrisons Compromised . | . . . . . . . . Overloaded Fab Kills . | . . . . . . . . Fab Network Shutdowns . | . . . . . . . . Hacking | -11 -10 -10 -10 -9 -8 -8 -7 --------- Run | Scr Mat Min Exi Min Mat Gar Fac Machines Accessed 16 | . 6 . 1 . 3 . 6 Terminals 11 | . 5 . . . 2 . 4 Fabricators 2 | . . . . . . . 2 Repair Stations . | . . . . . . . . Recycling Units 1 | . 1 . . . . . . Scanalyzers . | . . . . . . . . Garrison Access 1 | . . . . . 1 . . Total Hacks 45 | . 20 . 1 . 7 . 17 Successful 21 | . 10 . 1 . 3 . 7 Failed 24 | . 10 . . . 4 . 10 Catastrophic 6 | . 2 . . . 1 . 3 Database Lockouts . | . . . . . . . . Manual 27 | . 17 . . . 5 . 5 Terminals 36 | . 17 . . . 6 . 13 Fabricators 4 | . . . . . . . 4 Repair Stations . | . . . . . . . . Recycling Units 3 | . 3 . . . . . . Scanalyzers . | . . . . . . . . Garrison Access 1 | . . . . . 1 . . Terminal Hacks 11 | . 5 . 1 . 1 . 4 Record 1 | . . . 1 . . . . Part Schematic 1 | . 1 . . . . . . Branch Access Points 1 | . 1 . . . . . . Terminal Index 2 | . 1 . . . . . 1 Garrison Index 1 | . . . . . . . 1 Alert Level 1 | . . . . . . . 1 Registered Components 1 | . 1 . . . . . . Zone Layout 3 | . 1 . . . 1 . 1 Fabricator Hacks 2 | . . . . . . . 2 Load Schematic 1 | . . . . . . . 1 Build 1 | . . . . . . . 1 Repair Station Hacks . | . . . . . . . . Recycling Unit Hacks . | . . . . . . . . Scanalyzer . | . . . . . . . . Garrison Access Hacks 1 | . . . . . 1 . . Unlock Access 1 | . . . . . 1 . . Unauthorized Hacks 7 | . 5 . . . 1 . 1 Terminals 6 | . 4 . . . 1 . 1 Botnet 6 | . 4 . . . 1 . 1 Fabricators . | . . . . . . . . Repair Stations . | . . . . . . . . Recycling Units 1 | . 1 . . . . . . Mask 1 | . 1 . . . . . . Scanalyzers . | . . . . . . . . Garrison Access . | . . . . . . . . Data Cores Recovered . | . . . . . . . . Used . | . . . . . . . . Hacking Detections 15 | . 6 . . . 3 . 6 Full Trace Events 6 | . 3 . . . 1 . 2 Feedback Events 1 | . . . . . 1 . . Corruption 1 | . . . . . 1 . . Feedback Blocked . | . . . . . . . . Robot Schematics Acquired . | . . . . . . . . Robots Built . | . . . . . . . . Matter . | . . . . . . . . Time . | . . . . . . . . Total Robot Build Rating . | . . . . . . . . Part Schematics Acquired 1 | . 1 . . . . . . Parts Built 1 | . . . . . . . 1 Matter 102 | . . . . . . . 102 Time 51 | . . . . . . . 51 Total Part Build Rating 1 | . . . . . . . 1 Parts Repaired . | . . . . . . . . Time . | . . . . . . . . Parts Recycled . | . . . . . . . . Recycled Matter . | . . . . . . . . Retrieved Matter . | . . . . . . . . Retrieved Components . | . . . . . . . . Parts Scanalyzed . | . . . . . . . . Part Schematics Acquired . | . . . . . . . . Parts Damaged . | . . . . . . . . Bothacking | -11 -10 -10 -10 -9 -8 -8 -7 ------------ Run | Scr Mat Min Exi Min Mat Gar Fac Used RIF Installer 1 | . . . . . . 1 . Robots Hacked 14 | . . . . . . . 14 Non-combat 8 | . . . . . . . 8 Combat 6 | . . . . . . . 6 Robot Hacks Applied 15 | . . . . . . . 15 parse_system 2 | . . . . . . . 2 no_distress 1 | . . . . . . . 1 start_evac 1 | . . . . . . . 1 find_chute 1 | . . . . . . . 1 find_fabricator 1 | . . . . . . . 1 find_recycling 1 | . . . . . . . 1 ignore_parts 1 | . . . . . . . 1 check_alert 1 | . . . . . . . 1 map_route 2 | . . . . . . . 2 formatsys_high 4 | . . . . . . . 4 Relay Couplers Released 7 | . . . . . . 7 . Machine Destruction 7 | . . . . . . 7 . Attached 5 | . . . . . . . 5 Robots Rewired . | . . . . . . . . Allies Hacked . | . . . . . . . . Hacks Repelled . | . . . . . . . . Allies | -11 -10 -10 -10 -9 -8 -8 -7 -------- Run | Scr Mat Min Exi Min Mat Gar Fac Total Allies 6 | . . . . 2 . . 4 Largest Group 2 | . . . . 2 2 . 2 Highest-Rated Group 53 | . . . . 43 43 . 53 Highest-Rated Ally 32 | . . . . 31 31 . 32 Total Orders . | . . . . . . . . Ally Attacks 26 | . . . . . 5 . 21 Total Damage 518 | . . . . . 106 . 412 Kills 7 | . . . . . 1 . 6 Allies Corrupted . | . . . . . . . . Allies Melted . | . . . . . . . . Intel | -11 -10 -10 -10 -9 -8 -8 -7 ------- Run | Scr Mat Min Exi Min Mat Gar Fac Robot Analysis Total . | . . . . . . . . Derelict Logs Recovered 1 | . . 1 . . . . . Drone Launches . | . . . . . . . . Drone Recoveries . | . . . . . . . . Exploration | -11 -10 -10 -10 -9 -8 -8 -7 ------------- Run | Scr Mat Min Exi Min Mat Gar Fac Turns Passed 4713 | . 777 584 496 56 743 480 1577 Spaces Moved 2244 | 1 390 255 236 26 371 266 699 Core 3 | . . . . . 1 . 2 Treads 605 | . 344 92 . . . . 169 Legs 472 | 1 46 163 236 26 . . . Wheels 1164 | . . . . . 370 266 528 Hover . | . . . . . . . . Flight . | . . . . . . . . Fastest Speed 110 | 120 120 180 210 210 110 130 140 Average Speed 164 | 120 165 199 210 210 125 137 164 Slowest Speed 2450 | 120 180 210 210 210 1800 150 2450 Overloaded Moves . | . . . . . . . . Propulsion Burnouts . | . . . . . . . . Robots Hopped . | . . . . . . . . Cave-ins Triggered . | . . . . . . . . Exploration Rate (%) 38 | 2 65 54 60 12 49 52 17 Regions Visited 7 Branch Regions 3 Pre-discovered Areas 2 | . . 1 1 . . . . Known Exits Taken 2 | . 1 . . . 1 . . Unknown Exits Taken 4 | 1 . 1 1 1 . . . Scrap Searched 1 | . . 1 . . . . . Spaces Dug 18 | . . 16 . . 2 . . Terrain Destroyed 77 | . . 22 . . 35 20 . Melee . | . . . . . . . . Projectile 4 | . . . . . 3 1 . AOE 73 | . . 22 . . 32 19 . Terrain Rammed . | . . . . . . . . Walls Destroyed . | . . . . . . . . Machines Disabled . | . . . . . . . . Actions | -11 -10 -10 -10 -9 -8 -8 -7 --------- Run | Scr Mat Min Exi Min Mat Gar Fac Total 2861 | . 462 296 241 28 530 345 959 Wait 168 | . 11 4 . 3 34 18 98 Move 2237 | . 389 254 235 25 371 264 699 Hop . | . . . . . . . . Pick Up 60 | . 14 5 4 . 17 11 9 Fast Attach 22 | . 3 1 . . 9 4 5 Attach 30 | . 2 4 . . 7 2 15 Detach 1 | . . . . . . . 1 Swap 45 | . 7 3 . . 8 4 23 Drop 33 | . 5 1 2 . 18 3 4 Fire 225 | . 31 23 . . 66 23 82 Melee 17 | . . . . . . . 17 Ram 1 | . . . . . . . 1 Kick . | . . . . . . . . Crush 3 | . . 1 . . . . 2 Escape Stasis 16 | . . . . . . 16 . Rewire 3 | . . . . . . . 3 Trap . | . . . . . . . . Miscellaneous . | . . . . . . . . Route ------- -11/Scrapyard -10/Materials (discovered 3 exits: [*Mat x2] / *Min) -10/Mines (discovered 2 exits: [*Mat] / *Exi) -10/Exiles -9/Mines -8/Materials (discovered 4 exits: Fac / [*Sto x2] / Gar) -8/Garrison -7/Factory (discovered 1 exit: [Fac]) History --------- Turn | Location | Event 1 | -11/Scrapyard | Discovered new exit (range 0) 1 | -11/Scrapyard | Entered Materials 315 | -10/Materials | Build established: Mutant 513 | -10/Materials | Discovered new exit (range 4) 661 | -10/Materials | Discovered new exit (range 16) 678 | -10/Materials | Identified exit to Mines 778 | -10/Materials | Entered Mines 885 | -10/Mines | Discovered new exit (range 5) 887 | -10/Mines | Core integrity fell below 50% 959 | -10/Mines | Received a Rocket Launcher from a helpful Derelict 1028 | -10/Mines | Lost 4 parts (1p1n2w) 1284 | -10/Mines | A weapon hastily lodged in a ceiling crevice suddenly fell to the ground 1351 | -10/Mines | Deemed a non-threat by the Exiles lab entrance 1353 | -10/Mines | Discovered new exit (range 5) 1362 | -10/Mines | Entered Exiles 1364 | -10/Exiles | Build established: Hauler-Mutant 1419 | -10/Exiles | Met 8R-AWN 1449 | -10/Exiles | Met EX-HEX 1535 | -10/Exiles | Met EX-DEC 1549 | -10/Exiles | Learned location of Zion (-7) 1841 | -10/Exiles | Discovered new exit (range 10) 1858 | -10/Exiles | Entered Mines 1898 | -9/Mines | Discovered new exit (range 6) 1914 | -9/Mines | Entered Materials 1914 | -8/Materials | Accompanied by 2 allies 1914 | -8/Materials | Evolved 4 slots: Propulsion x1, Utility x3 1919 | -8/Materials | Led the pair of lost Derelicts to an unsafe place 1991 | -8/Materials | Discovered new exit (range 21) 2177 | -8/Materials | Discovered new exit (range 11) 2359 | -8/Materials | Discovered new exit (range 16) 2438 | -8/Materials | Garrison activated, responded to threat 2497 | -8/Materials | Destroyed 11 combat bots 2564 | -8/Materials | Garrison activated, responded to threat 2633 | -8/Materials | Lost 3 parts (1p1n1w) 2657 | -8/Materials | Identified exit to Garrison 2657 | -8/Materials | Entered Garrison 2664 | -8/Garrison | Installed Relay Interface Framework 2736 | -8/Garrison | Triggered checkpoint 2772 | -8/Garrison | Triggered checkpoint 2799 | -8/Garrison | Garrison Relay disabled 2855 | -8/Garrison | Triggered checkpoint 2950 | -8/Garrison | Triggered checkpoint 3006 | -8/Garrison | Garrison Relay disabled 3032 | -8/Garrison | Triggered checkpoint 3118 | -8/Garrison | Discovered new exit (range 13) 3137 | -8/Garrison | Entered Factory 3137 | -7/Factory | Evolved 2 slots: Utility x2 3310 | -7/Factory | Build established: Bothacker-Mutant 3601 | -7/Factory | Fabricated Hcp. Storage Unit (x1) 3931 | -7/Factory | Discovered new exit (range 98) 4237 | -7/Factory | Core integrity fell below 50% 4258 | -7/Factory | Lost 4 parts (1p1n2w) 4297 | -7/Factory | Core integrity fell below 20% 4302 | -7/Factory | Build established: Hauler-Mutant 4344 | -7/Factory | Lost 5 parts (1n1u3w) 4714 | -7/Factory | Destroyed by G-47 Trooper with Particle Gun Last Messages --------------- 04595_ K-01 Serf cleans the Nuclear Reactor. 04607_ S%HOVWWK&GKII &T&JQT,B1 04623_ System corrupted: Matter fused (-5). 04627_ Connecting with Terminal... 04637_ ALERT: Rogue bot located, Programmers report to Factory Zone 3C. 04643_ System corrupted: Energy discharge (-57). 04656_ G-47 Trooper destroyed. 04661_ System corrupted: Matter fused (-9). 04666_ Acquired 34 matter. 04676_ Plasma Cannon destroyed. 04680_ R-06 Scavenger collects Particle Gun. 04684_ R-06 Scavenger collects Aluminum Leg. 04695_ G-47 Trooper destroyed. 04695_ Switching to secondary target: G-47 Trooper. 04698_ System corrupted: Matter fused (-9). 04704_ System corrupted: Flak Gun targeting data glitched. 04704_ System corrupted: Hvy. Assault Rifle targeting data glitched. 04704_ G-47 Trooper destroyed. 04713_ P-60 Hacker destroyed. 04713_ Switching to secondary target: G-47 Trooper. Map ----- +----------------------------------------------------+ | ?????????????????????????????????????????????????? | | ?????????????????????????????????????????????????? | | ?????????????????????????????????????????????????? | | ?????????????????????????????????????????????????? | | ?????????????????????????????????????????????????? | | ?????????????????????????????????????????????????? | | ?????????????????????????????????????????????????? | | ??????????????????????????#######????????????????? | | ??????????????????????????# #????????????????? | | ??????????????????????????# "#????????????????? | | ??????????????????????????# " "#????????????????? | | ??????????????????????????# " "#????????????????? | | ??????????????????????????# " T#????????????????? | | ??????????????????????????# " "#????????????????? | | ??????????????????????????# " "#????????????????? | | ??????????????????????????# " "#????????????????? | | ??????????????????????????# " #????????????????? | | ??????????????????????????# " #######?#????????? | | ??????????????????????????# " ## ? ??????? | | ??????????????????######### !##] """ / ????? | | ??????????????????# ##+##### """ # ??? | | ??????????????????# """ / / """ # ?? | | ??????????????????# """=%## # # #?? | | ??????????????????#! """ga## # """ # #?? | | ??????????????????# [## # """ # #?? | | ??????????????????# """ @## # """ # #?? | | ??????????????????# """!*+% + # ### | | ??????????????????# """ %## # """ # # | | ??????????????????#[ ## # """ # # | | ??????????????????# """ ## # """ # # | | ??????????????????# """ ## # # # | | ??????????????????# """ ## # " """ # # | | ??????????????????# ## # T """ # # | | ??????????????????# ?""" ## # " """ + / | | ?????????????????????""" ## # # # | | ??????????????????????"" ## ######### # | | ??????????????????????? ## #???????# # | | ???????????????????????##### #???????# # | | ??????????????????????????? #???????# # | | ??????????????????????????? ????????# ### | | ???????????????????????????? ????????# #?? | | ?????????????????????????????? ????????# #?? | | ?????????????????????????????????????????# #?? | | ?????????????????????????????????????????# #?? | | ????????????????????????????? ######### #?? | | ???????????????????????????? #?? | | ???????????????????????????? #?? | | ???????????????????????????? #?? | | ????????????????????????????? ### | | ????????????????????????????? | +----------------------------------------------------+ Best States ------------- Heat Dissipation 34 Energy Generation 16 Energy Capacity 290 Matter Stores 300 Matter Capacity 300 Sight Range 22 Robot Scan Range 13 Terrain Scan Density 10 Armor Coverage 300 Utility Shielding 33 Evasion (%) 40 Targeting Accuracy 5 Recoil Reduction 3 Salvage Targeting 1 Relay Coupler Types 49 Relay Coupler Value 2 Item Schematics ----------------- Hcp. Storage Unit | -10/Materials | Hacked Robot Schematics ------------------ None Fabricated ------------ Hcp. Storage Unit | x1 | -7/Factory Alien Tech Used ----------------- None Achievements -------------- None Challenges ------------ None Game ------ Seed CombatShadingAutohacker Manual? 0 Play Time 00:41:32 Cumulative 219.9 hours Start 2021.01.05 @ 21:22:21 End 2021.01.05 @ 22:02:11 Sessions 1 Manual Loads 0 Difficulty Rogue Special Mode None Game No. 187 Rogue 58 Adventurer 63 Explorer 66 Win Type - Total 12 Types 11/0/0/1/0/0/0/0/0 Lore% 71 Gallery% 80 Achievement% 62 Wizard Run 0 Options --------- ASCII 0 Keyboard 0 Movement Numpad Keybinds 0 Fullscreen 2 Font 18/TerminusBold Map View 76x50 Tactical HUD 1 Map Filters NONE Filters NONE Steam 1 RUN: 532ed0b1-a4c4-493b-80f8-3ba6c7cd255b